[Event "FIDE WSCC 65 2022"]
[Site "Assisi"]
[Date "2022.11.20"]
[Round "6.1"]
[White "Jansa, Vlastimil"]
[Black "Nunn, John D M"]
[Result "1/2-1/2"]
[ECO "B92"]
[WhiteElo "2390"]
[BlackElo "2580"]
[Annotator "TA"]
[PlyCount "34"]
[EventDate "2022.11.14"]
[EventType "swiss"]
[EventCountry "ITA"]
[SourceTitle "playchess.com"]
[Source "ChessBase"]
[SourceQuality "1"]
[TimeControl "40/5400+30:1800+30"]

{[%evp 18,34,14,9,0,0,25,15,14,19,22,27,20,20,0,0,0,0,61]} 1. e4 {[%emt 0:00:25]} c5 {[%emt 0:00:07]} 2. Nf3 {[%emt 0:00:07]} d6 {[%emt 0:00:06]} 3. d4 {[%emt 0:00:10]} cxd4 {[%emt 0:00:05]} 4. Nxd4 {[%emt 0:00:02]} Nf6 {[%emt 0:00:08]} 5. Nc3 {[%emt 0:00:07]} a6 {[%emt 0:00:04]} 6. Be2 {[%emt 0:00:21]} e5 {[%emt 0:00:09]} 7. Nb3 {[%emt 0:00:07]} Be7 {[%emt 0:00:06]} 8. O-O {[%emt 0:00:11]} O-O {[%emt 0:00:05]} 9. Kh1 {[%emt 0:00:13]} b6 {[%emt 0:03:39]} 10. Bg5 {[%emt 0:03:44][%cal Bc1g5,Bg5h4,Bh4f2][%mdl 32]} Nbd7 {[%emt 0:00:42] B92: Sicilian Najdorf: 6 Be2.} 11. Nd5 {[%emt 0:02:22]} Bb7 {[%emt 0:10:00] [#] aiming for ...Nxd5.} (11... h6 $5 {[%cal Rh6g5]} 12. Bh4 g5 $11) 12. Nxe7+ {[%emt 0:01:09]} Qxe7 {[%emt 0:00:06]} 13. f3 {[%emt 0:00:35]} h6 {[%emt 0:03:41]} 14. Bh4 {[%emt 0:01:12]} g5 {[%emt 0:00:17]} 15. Bf2 {[%emt 0:00:31] The position is equal.} d5 {[%emt 0:00:10]} 16. exd5 {[%emt 0:04:32]} Nxd5 {[%emt 0:00:19]} 17. Re1 {[%emt 0:01:10] [#]} Rad8 $146 {[%emt 0:07:56] A rather calm draw.   Weighted Error Value: White=0.00 (flawless) /Black=0.05 (flawless)} (17... Rfd8 $11) ({Predecessor:} 17... Rfd8 18. Bf1 Nf4 19. Qc1 Rac8 20. c3 a5 21. Qc2 Qf6 22. Rad1 h5 23. Nd2 Nc5 {½-½ (23) Jansa,V (2437)-Rashkovsky,N (2482) Bled 2018}) 1/2-1/2

[Event "FIDE WSCC 65 2022"]
[Site "Assisi"]
[Date "2022.11.20"]
[Round "6.2"]
[White "Vaisser, Anatoly"]
[Black "Gaprindashvili, Nona"]
[Result "1/2-1/2"]
[ECO "A44"]
[WhiteElo "2463"]
[BlackElo "2268"]
[Annotator "TA"]
[PlyCount "130"]
[EventDate "2022.11.14"]
[EventType "swiss"]
[EventCountry "ITA"]
[SourceTitle "playchess.com"]
[Source "ChessBase"]
[SourceQuality "1"]
[TimeControl "40/5400+30:1800+30"]

{[%evp 9,130,58,100,63,58,59,53,24,23,33,39,24,26,23,38,29,33,0,9,-46,0,-42,0,0,0,0,0,-18,-9,-11,25,16,28,25,30,0,8,0,23,16,25,22,17,0,4,7,7,10,48,-38,45,23,41,44,66,66,65,49,498,185,197,202,201,201,204,213,207,183,285,268,253,237,268,300,388,381,309,215,210,229,307,206,223,219,218,206,243,192,194,164,155,140,147,126,127,0,129,0,127,125,125,122,133,131,91,0,0,0,137,104,122,96,75,56,46,18,18,0,47,0,20,0,50]} 1. d4 {[%emt 0:00:07]} c5 {[%emt 0:00:11]} 2. d5 {[%emt 0:00:07]} e5 {[%emt 0:00:04]} 3. e4 {[%emt 0:00:10]} d6 {[%emt 0:00:02]} 4. Nc3 {[%emt 0:00:24]} g6 {[%emt 0:00:13]} 5. f4 {[%emt 0:02:13]} f6 {[%emt 0:01:46]} 6. Nf3 {[%emt 0:08:33] A44: Semi-Benoni.} exf4 {[%emt 0:07:38]} 7. Bxf4 {[%emt 0:00:17][%cal Oe4e5]} Nh6 $1 {[%emt 0:00:03]} 8. Bb5+ {[%emt 0:03:07] White is slightly better.} Nd7 {[%emt 0:01:21] [#]} 9. a4 $146 {[%emt 0:01:34]} ({Predecessor:} 9. e5 dxe5 10. Nxe5 a6 11. Qe2 fxe5 12. Bxe5 axb5 13. Bf6+ Be7 14. Bxh8 Kf7 {1-0 (14) Ogaard,L (2386)-Gaprindashvili,N (2305) Drammen 2018}) 9... a6 {[%emt 0:02:29]} 10. Be2 {[%emt 0:00:36]} Nf7 {[%emt 0:02:03]} 11. O-O {[%emt 0:09:31]} Bg7 {[%emt 0:02:02]} 12. Qe1 {[%emt 0:02:37]} O-O {[%emt 0:00:32]} 13. Qg3 {[%emt 0:02:26]} Nde5 {[%emt 0:02:08]} 14. Nd1 {[%emt 0:07:27]} ({White should play} 14. Nxe5 $11 Nxe5 15. h4) 14... Bd7 {[%emt 0:04:09]} (14... Nxf3+ $15 {was preferrable.} 15. Bxf3 f5) 15. a5 {[%emt 0:04:55]} Bb5 {[%emt 0:00:35]} 16. Re1 {[%emt 0:07:14]} Bxe2 {[%emt 0:00:32]} 17. Rxe2 {[%emt 0:00:04]} Qd7 {[%emt 0:06:21]} 18. Nd2 {[%emt 0:05:36]} Rae8 {[%emt 0:02:35]} 19. h3 {[%emt 0:04:01]} Re7 {[%emt 0:08:08]} 20. Rf2 {[%emt 0:10:23]} Qb5 {[%emt 0:14:32]} 21. Nc3 {[%emt 0:00:35]} Qd7 {[%emt 0:15:37]} (21... Qxb2 $2 22. Nb3 $18) 22. Nd1 {[%emt 0:05:10][%cal Bc3d1,Bd1e3,Be3c4,Bc4b6][%mdl 32]} f5 {[%emt 0:01:31]} 23. exf5 {[%emt 0:01:17]} gxf5 {[%emt 0:03:35]} 24. Ne3 {[%emt 0:03:08]} Ng6 {[%emt 0:00:35]} 25. Ndc4 {[%emt 0:02:45] Black must now prevent Nb6.} Nfe5 $1 {[%emt 0:07:18]} 26. Raf1 {[%emt 0:02:10] Strongly threatening Bxe5.} Nxc4 {[%emt 0:06:13]} 27. Nxc4 {[%emt 0:00:03]} Re4 $1 {[%emt 0:06:45]} 28. Nb6 $36 {[%emt 0:01:03][%mdl 2048] Black is under pressure.} ({Reject} 28. Bxd6 f4 29. Qb3 Rxc4 $1 30. Bxf8 Rb4) 28... Qd8 {[%emt 0:03:31]} (28... Qb5 $5 {[%cal Rg7d4]}) 29. Bg5 {[%emt 0:00:59]} (29. Kh1 $14) 29... Qe8 {[%emt 0:01:13]} (29... f4 $1 $15 30. Bxd8 (30. Bxf4 $2 Bd4 $19) 30... fxg3 31. Rxf8+ Bxf8) 30. c3 $14 {[%emt 0:00:45]} ({But not} 30. Rxf5 Bd4+ 31. Kh2 Rxf5 32. Rxf5 Be5 33. Rxe5 Qxe5 $17) 30... f4 {[%emt 0:00:43]} 31. Bxf4 {[%emt 0:01:24]} Nxf4 {[%emt 0:00:47]} 32. Rxf4 {[%emt 0:00:06]} Rfxf4 {[%emt 0:00:07]} 33. Rxf4 {[%emt 0:00:10]} Qe5 $2 {[%emt 0:00:12][%mdl 8192] [#]} (33... Rxf4 $14 34. Qxf4 Qe1+ 35. Qf1 Qe4) 34. Rg4 $2 {[%emt 0:03:15]} (34. Rf8+ $3 {[%mdl 512]} Kxf8 35. Nd7+ Kf7 36. Nxe5+ Rxe5 37. Qf4+ Ke8 38. b4) 34... Re1+ $18 {[%emt 0:00:35]} 35. Kh2 $1 {[%emt 0:00:14][%cal Og4g7,Bg1h2,Bh2g3,Bg3f2,Bf2e2][%mdl 32] aiming for Rxg7+!} Qxg3+ {[%emt 0:00:03]} 36. Kxg3 {[%emt 0:00:37][%mdl 4096] Endgame KRB-KRN} Kf7 {[%emt 0:00:03]} 37. Nc4 {[%emt 0:01:00]} Bf8 {[%emt 0:00:46]} 38. Rf4+ {[%emt 0:02:57]} Ke8 {[%emt 0:00:03]} (38... Kg8 {was worth a try.} 39. Rg4+ Kf7 40. Rf4+ Kg8) 39. Kf2 {[%emt 0:01:04]} Rd1 {[%emt 0:00:18]} 40. Rf5 {[%emt 0:00:47]} Be7 {[%emt 0:00:11]} 41. Rh5 {[%emt 0:33:11]} h6 {[%emt 0:30:02]} 42. Ke2 {[%emt 0:00:40]} Rg1 {[%emt 0:00:11]} 43. g4 {[%emt 0:01:42]} Bf8 {[%emt 0:00:05]} 44. Rf5 {[%emt 0:02:57]} Be7 {[%emt 0:00:07]} 45. Rf3 {[%emt 0:02:05] And now Re3 would win.} Rh1 {[%emt 0:01:06]} 46. Kd2 {[%emt 0:00:49]} Bg5+ {[%emt 0:00:36]} 47. Kc2 {[%emt 0:00:51]} Ke7 {[%emt 0:00:18]} 48. Ne3 {[%emt 0:00:00]} Kd7 {[%emt 0:00:00]} 49. Kb3 {[%emt 0:00:00]} Rh2 {[%emt 0:00:00]} 50. Nc4 {[%emt 0:00:00] Hoping for Rf7+.} Ke7 {[%emt 0:00:00] Against Rf7+} 51. Ka4 {[%emt 0:00:00]} Rh1 {[%emt 0:00:00]} 52. Kb3 {[%emt 0:00:00]} Rh2 {[%emt 0:00:00]} 53. Ne3 {[%emt 0:00:00]} Kd7 $1 {[%emt 0:00:00]} 54. Nf5 {[%emt 0:00:00]} Bc1 {[%emt 0:00:00]} 55. Kc4 {[%emt 0:00:00]} Rxb2 {[%emt 0:00:00]} 56. Rf1 {[%emt 0:00:00]} Bg5 {[%emt 0:00:00] [#]} 57. h4 {[%emt 0:00:20]} (57. Ng7 $1 $16) 57... Bd8 $11 {[%emt 0:00:00]} 58. Nxh6 {[%emt 0:00:32]} Bxh4 {[%emt 0:00:00]} (58... Bxa5 $11 {remains equal.} 59. Kd3 b5) 59. Rf7+ $16 {[%emt 0:00:56]} Ke8 {[%emt 0:00:00]} 60. Rh7 {[%emt 0:01:20]} Bf6 {[%emt 0:00:00]} 61. Nf5 {[%emt 0:00:46] White is more active.} Be5 {[%emt 0:00:00]} 62. Rh6 {[%emt 0:01:47]} (62. Ne3 $5 {[%cal Rg4g5]}) 62... Kd7 {[%emt 0:00:00]} 63. Rh7+ {[%emt 0:00:10]} Ke8 $1 {[%emt 0:00:00]} 64. Rh6 {[%emt 0:00:51]} (64. Ne3 $5 {[%cal Rg4g5]}) 64... Kd7 {[%emt 0:00:00]} 65. Rh7+ {[%emt 0:00:22]} Ke8 $1 {[%emt 0:13:05] Black defended with fortune.  Weighted Error Value: White=0.30/Black=0.24 (precise)} 1/2-1/2

[Event "FIDE WSCC 65 2022"]
[Site "Assisi"]
[Date "2022.11.20"]
[Round "6.3"]
[White "Maryasin, Boris"]
[Black "Sideifzade, Fikret"]
[Result "1-0"]
[ECO "A45"]
[WhiteElo "2258"]
[BlackElo "2391"]
[Annotator "TA"]
[PlyCount "71"]
[EventDate "2022.11.14"]
[EventType "swiss"]
[EventCountry "ITA"]
[SourceTitle "playchess.com"]
[Source "ChessBase"]
[SourceQuality "1"]
[TimeControl "40/5400+30:1800+30"]

{[%evp 9,71,51,106,87,91,82,102,56,76,61,122,100,186,137,150,124,225,230,225,142,152,116,83,100,156,58,78,81,72,76,483,491,980,987,937,509,778,773,29996,299,948,975,1302,1294,1294,1269,1668,747,687,323,383,245,1014,433,417,409,478,440,430,227,1113,1089,1336,1187]} 1. d4 {[%emt 0:00:42]} Nf6 {[%emt 0:00:32]} 2. Nc3 {[%emt 0:00:12]} c5 {[%emt 0:03:36]} 3. dxc5 {[%emt 0:00:20]} e6 {[%emt 0:03:12]} 4. e4 {[%emt 0:00:26]} Bxc5 {[%emt 0:17:11]} 5. e5 {[%emt 0:01:20]} Ng8 {[%emt 0:00:24]} (5... Nd5 $1 $14) 6. Qg4 {[%emt 0:01:59] A45: Trompowsky Attack.} Bf8 {[%emt 0:02:37] [#]} 7. Nf3 $146 {[%emt 0:01:42]} ({Predecessor:} 7. Bd3 d5 8. exd6 Nf6 9. Qg3 Bxd6 10. Qxg7 Rg8 11. Qh6 Rxg2 12. Bg5 Nbd7 13. Nf3 {0-1 (43) Hoffmann,A (2185)-Song,M (2421) Chess.com INT 2021}) 7... Nc6 {[%emt 0:14:08]} 8. Bb5 {[%emt 0:03:50]} (8. Bg5 $16 Qa5 9. Bb5) 8... Nge7 $14 {[%emt 0:11:16]} 9. O-O {[%emt 0:06:53]} (9. Bg5 {seems wilder.} Qa5 10. Bxe7 Nxe7 11. O-O-O) 9... Nf5 {[%emt 0:02:02]} (9... Ng6 $14) 10. Bg5 {[%emt 0:03:05]} Qc7 {[%emt 0:06:49]} (10... Qa5 $16) 11. Rfe1 {[%emt 0:04:53]} ({White should try} 11. Bd3 $18) 11... h6 $16 {[%emt 0:05:38]} 12. Bd2 {[%emt 0:06:56]} Be7 {[%emt 0:06:55]} (12... Nb4 $16 {is a better defense.}) 13. Bd3 $18 {[%emt 0:07:28]} h5 {[%emt 0:03:58]} 14. Qc4 {[%emt 0:03:54]} d5 {[%emt 0:02:22]} 15. exd6 {[%emt 0:01:32]} Nxd6 {[%emt 0:00:18]} 16. Qf4 {[%emt 0:04:03]} O-O {[%emt 0:01:01]} (16... Kf8 $142 17. Rad1 Ne8 18. Qxc7 Nxc7) 17. Ng5 {[%emt 0:02:03]} (17. Rad1 $16) 17... g6 {[%emt 0:01:37]} 18. Qg3 {[%emt 0:02:11][%cal Og5e6] Nxe6! is the strong threat. White is much more active. The black rooks are badly placed.} Ne8 {[%emt 0:06:23]} 19. Bf4 $40 {[%emt 0:02:02][%mdl 128] White has strong attack.} Qb6 $2 {[%emt 0:01:31][%mdl 8192] Loses the game.} (19... Bd6 $16 {is tougher.} 20. Bxd6 Qxd6) 20. Nxf7 {[%emt 0:10:14]} Rxf7 {[%emt 0:00:10]} (20... Qd4 $142 21. Bh6 Qg4 22. Qxg4 hxg4 23. Bxf8 Kxf8) 21. Qxg6+ {[%emt 0:00:07]} Kf8 {[%emt 0:00:12]} 22. Qxh5 {[%emt 0:02:45][%cal Rh5h8]} Rxf4 {[%emt 0:02:59]} (22... Qd4 $142) 23. Qh6+ {[%emt 0:00:07]} Kg8 {[%emt 0:00:06]} 24. Qxf4 $2 {[%emt 0:00:13]} (24. Bh7+ {mates} Kh8 25. Bg6+ Kg8 26. Qh7+ Kf8 27. Qh8#) 24... Qxb2 $2 {[%emt 0:00:11] [#]} (24... Qd4 25. Qxd4 (25. Qh6 Qg7 $16) 25... Nxd4) 25. Qh6 $1 {[%emt 0:01:21] White threatens Qh7+ and mate.} Nf6 {[%emt 0:02:10] [#] Prevents Qh7+.} (25... Ne5 26. Qh7+) 26. Rab1 $1 {[%emt 0:07:07]} Qxc3 {[%emt 0:00:16]} 27. Re3 {[%emt 0:00:07] Hoping for Rg3+.} Ng4 {[%emt 0:02:40]} 28. Rg3 {[%emt 0:06:26]} (28. Qh7+ $142 Kf8 29. Rf3+ Bf6 30. Bg6) 28... Qg7 {[%emt 0:00:32] [#]} 29. Qh5 {[%emt 0:01:14]} (29. Rxg4 $142 $1 {[%mdl 512]} Qxg4 30. Qh7+ Kf8 31. Bg6 Qxg6 32. Qxg6) 29... e5 {[%emt 0:00:42]} 30. h3 {[%emt 0:00:14][%cal Ob1b7] aiming for Rxb7!} b6 $2 {[%emt 0:00:59]} (30... Qf7 31. hxg4 Qxh5 32. gxh5+ Kh8) 31. Bc4+ {[%emt 0:00:51]} (31. Qe8+ $142 Qf8 32. Qg6+ Qg7 33. Qxc6) 31... Kf8 {[%emt 0:00:03]} 32. hxg4 {[%emt 0:00:09] And now Rf3+ would win. Chess con chili.} Nd4 {[%emt 0:00:25] Inhibits Rf3+.} 33. Re1 {[%emt 0:03:14]} Bd6 {[%emt 0:00:29]} 34. g5 {[%emt 0:04:57]} (34. c3 $142 Be6 35. cxd4 Bxc4 36. dxe5) 34... Be6 $2 {[%emt 0:01:06]} (34... Bf5) 35. Bxe6 {[%emt 0:00:31][%cal Og3f3] Intending Rf3+! and mate.} Nxe6 {[%emt 0:00:03]} 36. Qf3+ {[%emt 0:01:07] Weighted Error Value: White=0.84/Black=0.72} 1-0

[Event "FIDE WSCC 65 2022"]
[Site "Assisi"]
[Date "2022.11.20"]
[Round "6.4"]
[White "Birnboim, Nathan"]
[Black "Kierzek, Matthias"]
[Result "1-0"]
[ECO "B10"]
[WhiteElo "2361"]
[BlackElo "2237"]
[Annotator "TA"]
[PlyCount "53"]
[EventDate "2022.11.14"]
[EventType "swiss"]
[EventCountry "ITA"]
[SourceTitle "playchess.com"]
[Source "ChessBase"]
[SourceQuality "1"]
[TimeControl "40/5400+30:1800+30"]

{[%evp 10,53,0,0,0,0,8,0,0,0,0,0,0,0,0,0,0,0,26,22,25,15,26,11,11,0,27,22,39,35,37,0,46,31,78,14,15,9,240,251,241,236,239,228,422,420]} 1. e4 {[%emt 0:00:21]} c6 {[%emt 0:00:05]} 2. d3 {[%emt 0:00:10]} d5 {[%emt 0:00:09]} 3. Nd2 {[%emt 0:00:08]} e5 {[%emt 0:00:24]} 4. Ngf3 {[%emt 0:00:11]} Bd6 {[%emt 0:00:09]} 5. d4 {[%emt 0:00:31]} exd4 {[%emt 0:01:02]} 6. exd5 {[%emt 0:00:07]} Nf6 {[%emt 0:00:51] B10: Caro-Kann: 2 d3 and 2 c4.} 7. dxc6 {[%emt 0:00:29]} Nxc6 {[%emt 0:00:07]} 8. Be2 {[%emt 0:00:26]} O-O {[%emt 0:02:11] The position is equal.} 9. O-O {[%emt 0:00:03]} Bc7 {[%emt 0:00:09]} 10. Nb3 {[%emt 0:04:53][%cal Rb3d4]} Bb6 {[%emt 0:03:25]} 11. Bg5 {[%emt 0:02:48]} h6 {[%emt 0:05:20]} 12. Bh4 {[%emt 0:00:59]} g5 {[%emt 0:16:00]} 13. Bg3 {[%emt 0:00:35] [#]} a6 $146 {[%emt 0:05:27]} ({Predecessor:} 13... Ne4 14. Bd3 Nxg3 15. fxg3 Be6 16. Qd2 a5 17. a4 Nb4 18. Kh1 Nxd3 19. Qxd3 Rc8 {½-½ (84) Safarli,E (2657)-Dreev,A (2644) Berlin 2015}) 14. Ne5 {[%emt 0:06:04]} Re8 {[%emt 0:05:14]} 15. Nxc6 {[%emt 0:04:53]} bxc6 {[%emt 0:00:07]} 16. Bc4 {[%emt 0:01:42]} Bf5 {[%emt 0:03:06] Inhibits Qd3.} 17. Bd3 {[%emt 0:07:46]} Ne4 {[%emt 0:05:57]} 18. Nd2 {[%emt 0:08:23]} Qd5 {[%emt 0:11:22]} 19. Nc4 {[%emt 0:05:47]} Bc5 {[%emt 0:00:46]} (19... Nxg3 $2 20. Nxb6 Qd8 21. fxg3 $18 (21. Nxa8 Bxd3 22. Qxd3 Nxf1 $16)) 20. a3 {[%emt 0:13:04]} a5 {[%emt 0:04:42]} (20... Re6 $11) 21. Re1 $14 {[%emt 0:06:09]} a4 {[%emt 0:02:33] [#]} (21... Bg6 $14) 22. Qf3 {[%emt 0:05:57]} ({White should try} 22. Be5 $1 $16) 22... Re6 $11 {[%emt 0:03:55]} 23. Be5 {[%emt 0:02:51]} Nd6 {[%emt 0:05:23] This move loses the game for Black.} (23... Bh7 $11 {and Black stays safe.}) 24. Bxd6 $18 {[%emt 0:11:46]} (24. Bxf5 Qxf3 25. Bxe6 Qh5 $11) 24... Qxf3 {[%emt 0:00:15]} 25. gxf3 {[%emt 0:00:02]} Bxd3 {[%emt 0:02:36]} 26. cxd3 {[%emt 0:01:02]} ({Don't do} 26. Rxe6 $6 Bxc4 27. Rf6 (27. Bxc5 fxe6 28. Bxd4 Rf8 $11) (27. Rxh6 Kg7 $16) 27... Bxd6 28. Rxd6 Bd5 29. Rxh6 Rb8) 26... Bxd6 $2 {[%emt 0:00:17]} (26... Rxd6 27. Nxd6 Bxd6) 27. Rxe6 {[%emt 0:00:10] Weighted Error Value: White=0.09 (flawless) /Black=0.40} 1-0

[Event "FIDE WSCC 65 2022"]
[Site "Assisi"]
[Date "2022.11.20"]
[Round "6.5"]
[White "Chapman, Terry P D"]
[Black "Fernandez Garcia, Jose Luis"]
[Result "0-1"]
[ECO "D41"]
[WhiteElo "2216"]
[BlackElo "2358"]
[Annotator "TA"]
[PlyCount "88"]
[EventDate "2022.11.14"]
[EventType "swiss"]
[EventCountry "ITA"]
[SourceTitle "playchess.com"]
[Source "ChessBase"]
[SourceQuality "1"]
[TimeControl "40/5400+30:1800+30"]

{[%evp 21,88,12,22,28,22,18,18,18,20,27,16,13,35,5,20,0,9,-43,0,0,-12,-19,3,12,17,-25,0,-15,0,0,95,95,96,94,103,106,92,-10,0,-35,0,-41,0,-150,-145,-850,-821,-850,-835,-801,-782,-728,-708,-29992,-29993,-29993,-29994,-29994,-12843,-12843,-12841,-12844,-12842,-12845,-12846,-12846,-12847,-12847,-12847]} 1. Nf3 {[%emt 0:00:04]} d5 {[%emt 0:00:15]} 2. d4 {[%emt 0:00:36]} Nf6 {[%emt 0:00:54]} 3. c4 {[%emt 0:00:41]} e6 {[%emt 0:00:12]} 4. Nc3 {[%emt 0:04:32]} c5 {[%emt 0:01:15]} 5. cxd5 {[%emt 0:00:36]} Nxd5 {[%emt 0:00:12]} 6. e4 {[%emt 0:01:17]} Nxc3 {[%emt 0:00:06]} 7. bxc3 {[%emt 0:00:01]} cxd4 {[%emt 0:00:07]} 8. cxd4 {[%emt 0:00:07]} Bb4+ {[%emt 0:00:02]} 9. Bd2 {[%emt 0:00:09]} Bxd2+ {[%emt 0:00:01]} 10. Qxd2 {[%emt 0:00:10]} O-O {[%emt 0:00:09]} 11. Bc4 {[%emt 0:02:02]} Nd7 {[%emt 0:00:18]} 12. O-O {[%emt 0:00:20] D41: Queen's Gambit Declined: Semi-Tarrasch with 5 cxd5.} b6 {[%emt 0:00:04]} 13. a4 {[%emt 0:02:33]} Bb7 {[%emt 0:01:35]} 14. Rfe1 {[%emt 0:04:08] The position is equal.} Rc8 {[%emt 0:00:09] The old main line.} 15. Bd3 {[%emt 0:04:17][%cal Bc4d3,Bd3b1,Bb1a2][%mdl 32]} Nb8 {[%emt 0:11:13] [#]} 16. Rad1 $146 {[%emt 0:06:47]} ({Predecessor:} 16. d5 exd5 17. e5 Qe7 18. Qf4 Na6 19. Ng5 h6 20. Nh7 Nb4 21. Nxf8 Qxf8 22. Bf5 {1-0 (43) Keymer,V (2607)-Lei,T (2505) chess24.com INT 2021}) 16... h6 {[%emt 0:06:45]} 17. Re3 {[%emt 0:07:51]} Re8 {[%emt 0:02:43]} 18. Bb1 {[%emt 0:10:46]} Nd7 {[%emt 0:11:55]} 19. e5 {[%emt 0:17:27]} (19. Ra3 $11) 19... Bxf3 {[%emt 0:06:01]} 20. gxf3 {[%emt 0:12:15]} ({Much worse is} 20. Rxf3 Nxe5 21. Rg3 Kf8 $1 $17) 20... Nf8 {[%emt 0:02:15]} 21. f4 {[%emt 0:00:47]} Qh4 {[%emt 0:07:15]} 22. Rg3 {[%emt 0:00:58]} Red8 {[%emt 0:01:40]} 23. Ba2 {[%emt 0:02:42] Prevents Rc4.} Rc7 {[%emt 0:02:53]} 24. Kh1 {[%emt 0:01:48]} Kh8 {[%emt 0:14:18]} 25. Rdg1 {[%emt 0:02:26]} Rcd7 {[%emt 0:09:00]} (25... Ng6 $1 $11 {keeps the balance.} 26. Bb1 Rcd7 27. Bxg6 fxg6) 26. d5 $1 $16 {[%emt 0:04:49] Strongly threatening d6.} ({But not} 26. Rxg7 Ng6 27. R1xg6 fxg6 28. Rxd7 Rxd7 29. Bxe6 Rd8 $14) 26... Rxd5 {[%emt 0:03:38]} 27. Bxd5 {[%emt 0:00:56]} Rxd5 {[%emt 0:00:01]} 28. Qe3 {[%emt 0:02:12]} Ng6 {[%emt 0:00:08] [#]} 29. Rg4 {[%emt 0:02:56]} ({White should play} 29. Qf3 $1 $16) 29... Qd8 $11 {[%emt 0:00:43]} 30. R4g3 {[%emt 0:04:21]} Rd4 {[%emt 0:04:32]} 31. f3 {[%emt 0:00:51][%cal Of4f5]} Qd5 {[%emt 0:04:19]} 32. f5 {[%emt 0:01:29]} (32. R3g2 $11 Rd3 33. Qe4) 32... exf5 $17 {[%emt 0:00:30][%cal Be6f5,Bf5f4][%mdl 32] White must now prevent ...f4. Black is more active.} 33. e6 $2 {[%emt 0:01:42][%mdl 8192] Loses the game.} (33. Qe2 $17 Nxe5 34. Qb5) 33... f4 $19 {[%emt 0:01:52]} 34. e7 {[%emt 0:01:44]} Nxe7 $1 {[%emt 0:00:12]} ({Not} 34... fxe3 35. e8=Q+ Kh7 36. Rxg6 Qxf3+ 37. R6g2 $11) 35. Qxe7 {[%emt 0:00:43]} fxg3 {[%emt 0:00:37]} 36. Rxg3 {[%emt 0:00:05][%mdl 4096] Endgame KQR-KQR} Kh7 {[%emt 0:02:21] And now ...Rd1+ would win.} 37. Qxa7 {[%emt 0:01:14]} Rd1+ {[%emt 0:00:11]} 38. Kg2 {[%emt 0:00:01]} Rd2+ {[%emt 0:00:13]} 39. Kh1 {[%emt 0:00:31]} Qa2 {[%emt 0:01:29]} (39... Rb2 $142 40. Qxb6 Rxb6 41. h4 Rb2 42. h5 Qd1+ 43. Rg1 Qxf3+ 44. Rg2 Qxg2#) 40. Qxb6 {[%emt 0:00:26] Black is clearly winning.} Rxh2+ {[%emt 0:00:30]} 41. Kg1 {[%emt 0:30:03]} Rb2 {[%emt 0:31:10][%cal Ra2a1]} 42. Rxg7+ {[%emt 0:01:04]} Kxg7 {[%emt 0:00:08][%cal Ra2a1]} 43. Qd4+ {[%emt 0:00:06]} f6 {[%emt 0:00:05] ( -> ...Rb1+)} 44. Qg4+ {[%emt 0:00:45]} Kh8 {[%emt 0:00:08] Weighted Error Value: White=0.59/Black=0.27 (precise)} 0-1